Cogmind - Beta 13 @@@ ROGUE MODE // 2024.05.31 @ 22:54:54 Player: CatPlusPlus Result: Destroyed by M Guard with Advanced Micro-nuke Launcher Performance ------------- Evolutions (9) 4500 Regions Visited (25) 5000 Robots Destroyed (287) 1435 Value Destroyed (10043) 10043 Prototype IDs (41) 820 Alien Tech Used (0) 0 Bonus (7934) 7934 TOTAL SCORE: 29732 Bonus ------- High Alert Combat Kills 136 Follower Combat Kills 2035 Entered Garrisons 1400 Used RIF Installer 4500 Aligned with FarCom 300 Friendly Fire -437 Cogmind --------- Core Integrity 0/1600 Matter 172/300 Energy 54/100 System Corruption 36% Temperature Cool (0) Movement Core (1450) Ox28 Location -1/Command Parts ------- > --- POWER (2) -------- (None) > --- PROPULSION (6) --- (None) > --- UTILITY (14) ----- Huge Storage Unit Relay Coupler [NC] (30) Relay Coupler [Grunt] (9) > --- WEAPON (3) ------- Rocket Array > --- INVENTORY (25) --- Light Quantum Reactor Matter Compressor (250) Experimental System Shield Relay Coupler [Swarmer] (33) Advanced Component Analysis Suite Long-range Tractor Beam Quantum Rifle Enhanced Quantum Rifle Advanced Remote Datajack Peak State ------------ > --- POWER ------------ Quantum Reactor Light Quantum Reactor > --- PROPULSION ------- Advanced Heavy Siege Treads Advanced Heavy Siege Treads Advanced Heavy Siege Treads > --- UTILITY ---------- Advanced Heat Sink Advanced Cooling System Huge Storage Unit Core Analyzer Quantum Capacitor Advanced Powered Armor Graphene Brace Advanced Remote Shield Antimissile System Relay Coupler [NC] Relay Coupler [Grunt] Relay Coupler [Specialist] Relay Coupler [Hunter] > --- WEAPON ----------- Enhanced Quantum Rifle Enhanced Nova Cannon Advanced Remote Datajack > --- INVENTORY -------- Particle Reactor Quantum Reactor Light Quantum Reactor Advanced Heavy Siege Treads High-density Centrium Wheel High-density Centrium Wheel Matter Compressor Advanced Powered Armor Advanced Shield Generator Point Defense Array Experimental System Shield Relay Coupler [Swarmer] Advanced Component Analysis Suite Long-range Tractor Beam Quantum Rifle Enhanced Quantum Rifle Heavy Gauss Cannon Heavy Gauss Cannon Linear Accelerator Rocket Array Force Lance [Rating: 190] Favorites ----------- Power Light Quantum Reactor Engine Improved Ion Engine Power Core Enhanced Nuclear Core Reactor Light Quantum Reactor Propulsion Armored Wheel Treads Advanced Heavy Siege Treads Wheel Armored Wheel Utility Huge Storage Unit Device Improved Transmission Jammer Storage Huge Storage Unit Processor Core Analyzer Hackware Relay Coupler [NC] Protection Improved Medium Armor Plating Weapon Enhanced Autogun Energy Gun Enhanced Quantum Rifle Energy Cannon Heavy Phase Cannon Ballistic Gun Enhanced Autogun Ballistic Cannon Heavy Mass Driver Launcher Rocket Array Special Weapon Improved Remote Datajack Impact Weapon Heavy Mace Piercing Weapon Force Lance Special Melee Weapon Datajack Build | -11 -10 -10 -9 -9 -9 -8 -8 -8 -8 -8 -8 -8 -7 -6 -6 -6 -6 -5 -5 -4 -4 -3 -2 -1 -1 ------- Run | Yrd Mat Min Mat Min Exi Min Mat Gar Mat Gar Mat Gar Fac Fac Gar Fac Gar Fac Gar Fac Gar Res Res Acc Com Slots Evolved 18 | . . . 2 . . . 2 . . . . . 2 2 . . . 2 . 2 . 2 2 2 . Power 1 | . . . . . . . . . . . . . . 1 . . . . . . . . . . . Propulsion 4 | . . . 1 . . . . . . . . . . . . . . 1 . . . 1 1 . . Utility 12 | . . . . . . . 2 . . . . . 2 1 . . . 1 . 2 . 1 1 2 . Weapon 1 | . . . 1 . . . . . . . . . . . . . . . . . . . . . . Parts Attached 475 | 8 17 5 17 3 2 3 34 11 3 8 3 14 31 30 17 13 38 11 43 9 38 27 15 39 36 Power 34 | 1 2 . 3 . . . 2 . 1 . 1 1 3 4 . 1 1 . 7 . . . . 2 5 Engine 10 | 1 2 . 3 . . . 2 . . . . . 1 1 . . . . . . . . . . . Core 11 | . . . . . . . . . 1 . 1 1 2 3 . 1 1 . 1 . . . . . . Reactor 13 | . . . . . . . . . . . . . . . . . . . 6 . . . . 2 5 Propulsion 46 | 2 2 . 3 . . . 3 1 . . 2 3 4 1 1 1 5 2 4 . . 5 . 2 5 Treads 16 | 2 . . . . . . . . . . . 2 1 . . . 3 . 2 . . 2 . 1 3 Leg . | . . . . . . . . . . . . . . . . . . . . . . . . . . Wheel 30 | . 2 . 3 . . . 3 1 . . 2 1 3 1 1 1 2 2 2 . . 3 . 1 2 Hover . | . . . . . . . . . . . . . . . . . . . . . . . . . . Flight . | . . . . . . . . . . . . . . . . . . . . . . . . . . Utility 164 | 2 4 2 6 2 1 . 10 3 . 2 . 2 13 6 6 4 15 7 15 4 15 14 5 13 13 Device 98 | 1 1 1 3 1 . . 6 . . 1 . 1 4 6 4 2 11 7 10 4 6 9 3 8 9 Storage 6 | 1 2 . . . 1 . 1 . . . . . . . . . . . . . . 1 . . . Processor 3 | . . . . . . . . . . . . . 1 . . . . . . . . 1 . 1 . Hackware 26 | . . . . . . . . 1 . . . . 2 . 2 1 3 . 5 . 6 1 1 3 1 Protection 31 | . 1 1 3 1 . . 3 2 . 1 . 1 6 . . 1 1 . . . 3 2 1 1 3 Artifact . | . . . . . . . . . . . . . . . . . . . . . . . . . . Weapon 231 | 3 9 3 5 1 1 3 19 7 2 6 . 8 11 19 10 7 17 2 17 5 23 8 10 22 13 Energy Gun 12 | 1 . . 1 . . . 1 . . . . . . . . . 1 1 . . 1 . . 6 . Energy Cannon 14 | . . . . . . . . . . . . . 2 1 1 . 1 . 5 . . 1 . 1 2 Ballistic Gun 56 | 2 5 2 2 1 . 2 10 2 2 2 . 4 3 10 3 2 4 . . . . . . . . Ballistic Cannon 10 | . . . 1 . . . 2 . . 1 . . . . . . 1 . . . 1 . . . 4 Launcher 15 | . 3 . 1 . 1 1 3 . . 1 . . . 2 . . 1 . . . . . . . 2 Special Weapon 60 | . 1 1 . . . . . . . . . 1 2 2 4 2 5 1 6 3 12 4 5 7 4 Impact Weapon 30 | . . . . . . . 3 4 . 2 . 2 4 4 2 3 4 . 2 . . . . . . Slashing Weapon . | . . . . . . . . . . . . . . . . . . . . . . . . . . Piercing Weapon 32 | . . . . . . . . . . . . . . . . . . . 4 2 9 3 5 8 1 Special Melee Weapon 2 | . . . . . . . . 1 . . . 1 . . . . . . . . . . . . . Unidentified Prototypes 11 | . 1 . 2 1 . . 1 . 1 . . . . 1 . . . . . . 1 1 1 1 . Parts Lost 38 | . . . 1 . . . . . . . . 1 2 . . . 2 . . . 1 . . 1 30 Power 5 | . . . . . . . . . . . . . 1 . . . . . . . . . . . 4 Propulsion 8 | . . . . . . . . . . . . 1 . . . . 1 . . . . . . . 6 Utility 19 | . . . 1 . . . . . . . . . 1 . . . 1 . . . 1 . . 1 14 Weapon 6 | . . . . . . . . . . . . . . . . . . . . . . . . . 6 Highest Loss Streak 29 | . . . 1 . . . . . . . . 1 1 . . . 1 . . . 1 . . 1 29 To Critical Strikes . | . . . . . . . . . . . . . . . . . . . . . . . . . . Average Slot Usage (%) 89 | . 100 100 99 100 100 100 100 99 100 99 99 97 88 85 85 85 83 81 81 77 82 83 81 89 80 Engine 2 | . 14 14 11 11 11 11 9 9 2 . . . . 3 . . . . . . . . . . . Core 4 | . . . . . . . . . 6 9 9 9 6 9 13 13 13 11 9 . . . . . . Reactor 2 | . . . . . . . . . . . . . . . . . . . 1 10 10 9 8 8 7 Treads 4 | . 19 . . . . . . . . . . 2 1 . . . 7 5 5 10 10 9 4 6 11 Wheel 14 | . 8 28 33 33 33 33 27 27 27 27 26 22 13 12 13 13 5 10 10 . . 5 13 12 1 Device 13 | . 13 3 . . . . 14 15 9 16 18 18 19 19 23 14 13 22 7 14 14 13 10 12 13 Storage 7 | . 14 14 11 11 11 11 9 9 9 9 9 9 7 6 6 6 6 5 5 5 5 4 4 4 4 Hackware 9 | . . . . . . . . 1 9 1 . . 4 6 2 11 12 5 20 21 22 22 21 23 21 Protection 7 | . . 10 10 11 11 11 12 10 9 9 9 9 9 6 6 5 6 5 5 5 8 6 6 7 6 Ballistic Gun 13 | . 26 22 24 33 33 32 25 22 18 20 18 21 18 15 17 13 7 . . . . . . . . Ballistic Cannon 1 | . . . 7 . . . . . . . . . . . . . 2 5 5 5 4 4 4 . . Special Weapon 1 | . . 3 . . . . . . . . . . 1 . 1 3 1 . 2 2 3 2 1 1 2 Impact Weapon 1 | . . . . . . . . 4 9 6 9 4 . 1 . 1 2 . . . . . . . . Naked Turns . | . . . . . . . . . . . . . . . . . . . . . . . . . . Heaviest Build 191 | 15 52 54 60 59 60 59 112 110 107 109 106 113 129 139 139 133 140 153 169 162 162 167 174 191 185 Greatest Support 240 | 40 40 24 36 36 36 36 36 36 36 36 36 70 40 40 40 40 97 22 160 160 172 195 60 108 240 Greatest Overweight (x) 12 | . 2 2 1 1 1 1 4 3 2 3 3 9 9 3 3 3 11 12 7 1 1 8 2 3 4 Average Overweight (x) 2 | . . 2 1 1 1 1 2 2 2 2 2 3 3 3 3 3 1 6 3 . . . 2 2 . Largest Inventory Capacity 25 | 8 20 20 20 20 20 20 25 25 25 25 25 25 25 25 25 25 25 25 25 25 25 25 25 25 25 Average Capacity 23 | 7 16 20 20 20 20 20 24 25 25 25 25 25 25 25 25 25 25 25 25 25 25 25 25 25 25 Most Carried 25 | 8 20 20 20 20 20 20 25 25 25 25 25 25 25 25 25 25 25 25 25 25 25 25 25 25 25 Average Carried 23 | 5 14 20 19 19 19 19 24 24 24 24 24 24 24 24 24 25 24 24 24 24 24 24 24 24 23 Final Capacity 25 | 8 20 20 20 20 20 20 25 25 25 25 25 25 25 25 25 25 25 25 25 25 25 25 25 25 25 Final Carried 25 | 8 20 20 20 20 20 20 25 25 24 25 25 25 25 25 25 25 25 25 25 25 25 25 24 25 9 Class Distribution -------------------- 22% | Tank 20% | Botlord-Tank 19% | Mutant 12% | Skirmisher 11% | Botlord-Mutant 4% | Bothacker-Skirmisher 3% | Bothacker-Tank Dominant Class ---------------- Mutant | -10/Materials Mutant | -10/Mines Tank | -9/Materials Tank | -9/Mines Tank | -9/Exiles Skirmisher | -8/Mines Tank | -8/Materials Mutant | -8/Garrison Mutant | -8/Materials Mutant | -8/Garrison Mutant | -8/Materials Mutant | -8/Garrison Skirmisher | -7/Factory Tank | -6/Factory Tank | -6/Garrison Bothacker-Skirmisher | -6/Factory Skirmisher | -6/Garrison Botlord-Skirmisher | -5/Factory Botlord-Tank | -5/Garrison Botlord-Mutant | -4/Factory Botlord-Tank | -4/Garrison Botlord-Tank | -3/Research Botlord-Mutant | -2/Research Botlord-Mutant | -1/Access Botlord-Tank | -1/Command Resources | -11 -10 -10 -9 -9 -9 -8 -8 -8 -8 -8 -8 -8 -7 -6 -6 -6 -6 -5 -5 -4 -4 -3 -2 -1 -1 ----------- Run | Yrd Mat Min Mat Min Exi Min Mat Gar Mat Gar Mat Gar Fac Fac Gar Fac Gar Fac Gar Fac Gar Res Res Acc Com Matter Collected 14392 | 360 584 218 835 68 30 188 1018 549 98 203 220 445 1379 560 1015 213 1013 112 1113 152 1262 964 395 807 591 Remotely 2761 | . . . 92 . . . 176 . . . . . . 43 375 70 324 13 445 39 437 512 . 88 147 Salvage Created 13548 | 141 730 218 901 72 . 161 863 548 332 302 266 528 1385 483 747 108 806 80 965 47 1011 1257 247 790 560 Parts 651 | 13 54 12 50 8 . 17 74 16 6 23 14 30 69 21 23 1 39 7 30 . 21 44 8 51 20 Haulers Intercepted 17 | . 2 . 2 . . . 5 . 1 . 3 . 2 1 . . . . . . . . 1 . . Recyclers Shooed 14 | 1 1 . 2 . . . . . . . . . 4 1 . 1 . . . . . 3 . 1 . Parts Field Recycled . | . . . . . . . . . . . . . . . . . . . . . . . . . . Retrieved Matter . | . . . . . . . . . . . . . . . . . . . . . . . . . . Parts Self-Destructed . | . . . . . . . . . . . . . . . . . . . . . . . . . . Prevented . | . . . . . . . . . . . . . . . . . . . . . . . . . . Kills | -11 -10 -10 -9 -9 -9 -8 -8 -8 -8 -8 -8 -8 -7 -6 -6 -6 -6 -5 -5 -4 -4 -3 -2 -1 -1 ------- Run | Yrd Mat Min Mat Min Exi Min Mat Gar Mat Gar Mat Gar Fac Fac Gar Fac Gar Fac Gar Fac Gar Res Res Acc Com Combat Hostiles Destroyed 190 | . 17 2 13 . . 3 18 10 3 11 2 12 13 6 7 . 21 2 13 2 8 11 . 8 8 Melee 4 | . . . . . . . . 1 . . . 1 . . . . . . 1 . . . . . 1 Guns 123 | . 16 2 12 . . . 9 9 3 8 2 11 13 3 7 . 16 . . . . . . 8 4 Cannons 41 | . . . 1 . . . . . . . . . . . . . 3 2 12 2 8 11 . . 2 AOE 21 | . 1 . . . . 3 9 . . 3 . . . 3 . . 1 . . . . . . . 1 Classes Destroyed 18 | 2 4 . 1 1 . 1 2 1 . 1 . 1 1 . 1 . 1 . . . 1 . . . . Worker 12 | . . . . 1 . 1 2 . . . . . 2 2 . . . . . . . 2 . 1 1 Builder 10 | . . . . . . 1 2 . 1 . . . . . . . . . . . . 1 2 3 . Tunneler 10 | 3 . 1 . 2 . 2 . . . . . . . . . . . 1 . . . 1 . . . Hauler 17 | . 2 . 2 . . . 5 . 1 . 3 . 2 1 . . . . . . . . 1 . . Recycler 24 | 1 2 2 2 . . 1 1 . 1 . . . 6 1 . 1 . . . . . 4 1 1 . Mechanic 2 | . . . . . . . . . . . . . 1 . . . . . . . . . . . 1 Operator 1 | . . . . . . . 1 . . . . . . . . . . . . . . . . . . Watcher 20 | . 3 . 4 . . . 3 . . 2 1 . 2 2 . . . . 1 . . 2 . . . Swarmer 48 | . 9 . . . . 3 8 5 . 8 . 1 . 4 . . 8 . 1 . 1 . . . . Cutter 3 | . . . . . . . . . . . . . . . . . 3 . . . . . . . . Grunt 70 | . 8 2 7 . . . 6 3 2 . 2 7 5 1 1 . 8 . 8 . 5 5 . . . Brawler 7 | . . . . . . . . 2 . 1 . . 2 . . . 1 . . . . 1 . . . Duelist 3 | . . . . . . . . . . 1 . . 1 . . . 1 . . . . . . . . Sentry 21 | . . . 6 . . . 3 . 1 1 . . . . 4 . . . 4 . . 1 . . 1 Specialist 1 | . . . . . . . . . . . . . . . 1 . . . . . . . . . . Hunter 9 | . . . . . . . 1 . . . . 1 . . 1 . . . 1 . 1 2 . . 2 Programmer 27 | . . . . . . . . . . . . 3 5 1 . . . 2 . 2 . 2 . 8 4 Behemoth 1 | . . . . . . . . . . . . . . . . . . . . . 1 . . . . Combat Programmer 1 | . . . . . . . . . . . . . . . . . . . . . . . . . 1 Best Kill Streak 9 | 2 8 3 3 3 . 3 9 3 4 9 2 4 5 6 3 1 4 2 3 1 3 5 2 4 3 Combat Bots Only 9 | . 4 2 3 . . 3 4 3 3 9 1 4 3 5 3 . 4 2 3 1 3 4 . 4 2 Max Kills in Single Turn 5 | 1 1 1 1 1 . 2 5 2 1 3 1 2 1 3 1 1 1 1 1 1 1 1 1 2 1 Gunslinging 1 | . . . . . . . . 1 . 1 . 1 . . . . . . . . . . . 1 . Exploded 4 | . 1 . . . . 2 4 . . 3 . . . 3 . . 1 . . . . . . . 1 Melee 1 | . . . . . . . . 1 . . . 1 . . . . . . 1 . . . . . 1 Uniques/NPCs Destroyed . | . . . . . . . . . . . . . . . . . . . . . . . . . . Combat | -11 -10 -10 -9 -9 -9 -8 -8 -8 -8 -8 -8 -8 -7 -6 -6 -6 -6 -5 -5 -4 -4 -3 -2 -1 -1 -------- Run | Yrd Mat Min Mat Min Exi Min Mat Gar Mat Gar Mat Gar Fac Fac Gar Fac Gar Fac Gar Fac Gar Res Res Acc Com Hostile Shots Fired 1096 | . 56 2 62 . . 4 67 42 19 19 1 25 48 34 52 30 73 12 77 9 73 76 8 72 235 Missed 318 | . 13 1 19 . . 1 12 13 2 5 . 5 15 7 20 9 20 5 31 1 33 28 3 27 48 Intercepted 8 | . . . . . . . . . . . . . . . . . . . . . . . . . 8 Damage Taken 17153 | . 436 60 576 . . 20 571 330 261 165 6 306 618 303 324 237 1284 75 566 84 671 1237 134 1033 7856 Core 2425 | . 91 . 90 . . 6 68 48 34 34 6 54 . 18 15 . 81 11 27 . 47 164 10 212 1409 Absorbed by Shields 2030 | . . . . . . . 175 124 . . . . 103 115 85 . . 70 319 81 274 . . 206 478 Reduced by Siege Mode 1014 | . . . . . . . . . . . . . . . . . . . . 6 . 12 . . 996 Regen/Repaired (Parts) 551 | . . . 101 . . . . . . . 45 . . . . 405 . . . . . . . . . Core Remaining (%) 85 | 100 . 63 . . . 76 . . . . . 55 100 . . . 86 . 96 . 95 87 99 . . Volleys Fired 1094 | 15 60 8 61 6 . 22 63 50 7 22 16 30 95 31 78 14 76 10 91 10 81 87 21 50 90 Largest 3 | 2 2 2 3 1 . 3 3 3 2 3 2 3 3 3 3 3 3 1 1 1 1 2 1 3 3 Hottest 250 | 40 100 100 102 23 . 69 79 69 50 83 50 75 140 140 140 80 149 94 120 75 75 195 75 224 250 Shots Fired 1965 | 30 117 13 175 6 . 36 151 136 14 42 32 80 225 63 163 24 153 10 91 10 81 90 21 77 125 Gun 1458 | 30 114 11 151 6 . 31 132 136 14 39 32 80 209 47 155 18 133 1 13 . . . . 53 53 Cannon 345 | . . . 24 . . . 12 . . 1 . . 10 12 3 . 14 8 62 7 51 68 10 7 56 Launcher 25 | . 2 1 . . . 5 7 . . 2 . . . 3 . . 2 . . . . . . . 3 Special 137 | . 1 1 . . . . . . . . . . 6 1 5 6 4 1 16 3 30 22 11 17 13 Kinetic 1545 | 30 114 11 173 6 . 31 144 136 14 40 32 80 209 47 155 18 122 8 35 7 51 48 10 6 18 Thermal 269 | . 1 1 2 . . . . . . . . . 10 12 3 . 23 1 40 . 11 20 . 54 91 Explosive 25 | . 2 1 . . . 5 7 . . 2 . . . 3 . . 2 . . . . . . . 3 Electromagnetic 4 | . . . . . . . . . . . . . . . . . 4 . . . . . . . . Robot Hit Streak 50 | 5 14 7 20 3 . 7 14 50 5 10 4 9 12 10 36 15 14 5 11 10 10 10 4 12 19 Robot Miss Streak 6 | 6 3 1 2 1 . 4 4 3 3 2 4 4 6 4 1 2 6 3 3 1 3 3 4 2 5 Penetration Max 1 | . . . . . . . . . . . . . . . . . . . . . . 1 . . 1 Secondary Targets 20 | . 2 . . . . . 1 5 1 3 1 2 . . . . 3 . . . . . . 2 . Max Gunslinging Chain 2 | . 1 . . . . . 1 1 1 1 1 2 . . . . 1 . . . . . . 1 . Capacitor 24 | . . . . . . . . . . . . . . . . . . . . . . . . . 24 Shots Hit Robots 1321 | 14 70 9 116 5 . 19 90 111 15 26 18 49 141 35 142 20 80 6 65 10 67 62 15 57 79 Core Hits 526 | 5 31 6 33 3 . 14 54 39 4 16 8 23 47 25 44 4 37 2 23 2 26 20 3 21 36 Critical Kills 1 | . . . . . . . . . . . . . . 1 . . . . . . . . . . . Critical Parts Destroyed 11 | . . . 1 . . . . 2 1 1 . . 2 . 3 . 1 . . . . . . . . Critical Strikes 41 | . . . 1 . . . . 2 1 1 . . 2 1 3 . 2 1 5 1 9 8 . 1 3 Destroy 12 | . . . 1 . . . . 2 1 1 . . 2 1 3 . 1 . . . . . . . . Blast 24 | . . . . . . . . . . . . . . . . . 1 1 4 1 7 7 . 1 2 Sever 1 | . . . . . . . . . . . . . . . . . . . . . 1 . . . . Impale 4 | . . . . . . . . . . . . . . . . . . . 1 . 1 1 . . 1 Melee Attacks 197 | . . . . . . . 3 25 6 9 1 5 10 11 4 6 23 . 11 8 29 9 12 21 4 Impact 104 | . . . . . . . 3 23 6 9 1 5 10 11 4 6 23 . 3 . . . . . . Slashing . | . . . . . . . . . . . . . . . . . . . . . . . . . . Piercing 91 | . . . . . . . . . . . . . . . . . . . 8 8 29 9 12 21 4 Sneak Attacks 20 | . . . . . . . . 2 2 1 . . . 1 . . . . 1 1 . 4 5 3 . Combat Hostiles 2 | . . . . . . . . 1 . . . . . . . . . . 1 . . . . . . Follow-up Attacks . | . . . . . . . . . . . . . . . . . . . . . . . . . . Damage Inflicted 33659 | 194 1074 177 1820 65 . 401 2050 1255 508 835 322 946 2645 1117 1751 201 1899 490 2913 588 3223 3221 714 1906 3344 Guns 16804 | 194 1014 120 1574 65 . 302 1224 1123 179 534 322 907 2538 513 1751 201 1408 29 370 . . . . 1406 1030 Cannons 11831 | . . . 246 . . . 62 . . . . . 68 243 . . 401 461 2377 541 2241 2857 261 225 1848 Explosions 1902 | . 56 57 . . . 99 764 . . 185 . . . 275 . . 90 . . . . . . . 376 Melee 2925 | . . . . . . . . 132 329 116 . 39 32 86 . . . . 166 47 817 343 453 275 90 Ramming 32 | . 4 . . . . . . . . . . . 7 . . . . . . . . 21 . . . Kinetic 22289 | 194 1014 120 1804 65 . 302 1286 1123 179 534 322 907 2538 513 1751 201 1344 461 1649 541 2241 2289 261 225 425 Thermal 6418 | . . . 16 . . . . . . . . . 68 243 . . 372 29 1098 . 165 568 . 1406 2453 Explosive 1902 | . 56 57 . . . 99 764 . . 185 . . . 275 . . 90 . . . . . . . 376 Electromagnetic 93 | . . . . . . . . . . . . . . . . . 93 . . . . . . . . Impact 734 | . . . . . . . . 132 329 116 . 39 32 86 . . . . . . . . . . . Slashing . | . . . . . . . . . . . . . . . . . . . . . . . . . . Piercing 2191 | . . . . . . . . . . . . . . . . . . . 166 47 817 343 453 275 90 Highest Corruption 36 | . 1 1 . . . . . . . . . 1 4 1 . . . 1 . . . 1 . 13 36 Average Corruption 5 | . 1 1 . . . . . . . . . 1 2 1 . . . 1 . . . 1 . 9 15 Corruption Purged 2 | . . . . . . . . . . . . . . 1 . . . 1 . . . . . . . Corruption Blocked . | . . . . . . . . . . . . . . . . . . . . . . . . . . Effects 139 | . 7 3 . . . . . . . . . 4 32 . . . . . . . . 2 . 39 52 Message Errors 33 | . 1 . . . . . . . . . . 1 6 . . . . . . . . . . 14 11 Matter Fused 34 | . 2 1 . . . . . . . . . 1 9 . . . . . . . . 1 . 9 11 Heat Flow Errors 14 | . 2 . . . . . . . . . . . 4 . . . . . . . . . . 2 6 Energy Discharges 14 | . 1 . . . . . . . . . . . 3 . . . . . . . . 1 . 4 5 Parts Rejected 2 | . . . . . . . . . . . . . . . . . . . . . . . . . 2 Data Loss (minor) 19 | . 1 1 . . . . . . . . . 1 6 . . . . . . . . . . 4 6 Data Loss (major) 9 | . . 1 . . . . . . . . . . 3 . . . . . . . . . . 2 3 Misfires 5 | . . . . . . . . . . . . . 1 . . . . . . . . . . 2 2 Alerts 2 | . . . . . . . . . . . . 1 . . . . . . . . . . . . 1 Misdirections 1 | . . . . . . . . . . . . . . . . . . . . . . . . . 1 Weapon Failures 6 | . . . . . . . . . . . . . . . . . . . . . . . . 2 4 Overload Shots . | . . . . . . . . . . . . . . . . . . . . . . . . . . Overflow Damage 1577 | . . . . . . 30 4 46 181 17 . . 17 25 . . 13 128 167 102 94 458 274 . 21 Projectiles 883 | . . . . . . . . . . . . . 17 9 . . 13 128 153 95 94 301 52 . 21 Explosions 51 | . . . . . . 30 4 . . 17 . . . . . . . . . . . . . . . Melee 643 | . . . . . . . . 46 181 . . . . 16 . . . . 14 7 . 157 222 . . Knockbacks 45 | . . . 3 . . . . 1 2 . . . . . . . 1 1 4 5 12 9 1 . 6 Impact 3 | . . . . . . . . 1 2 . . . . . . . . . . . . . . . . Kinetic 39 | . . . 3 . . . . . . . . . . . . . 1 1 4 4 12 8 1 . 5 Secondary 3 | . . . . . . . . . . . . . . . . . . . . 1 . 1 . . 1 Self-Inflicted Damage 77 | . 2 47 . . . . . . . . . . 3 . . . . . . . . . . . 25 Shots 3 | . . 1 . . . . . . . . . . . . . . . . . . . . . . 2 Rammed 6 | . 2 . . . . . . . . . . . 1 . . . . . . . . 3 . . . Targets Rammed 6 | . 2 . . . . . . . . . . . 1 . . . . . . . . 3 . . . Kicked . | . . . . . . . . . . . . . . . . . . . . . . . . . . Crushed . | . . . . . . . . . . . . . . . . . . . . . . . . . . Highest Temperature 356 | . 194 20 224 . . 24 356 1 11 . . 20 233 70 70 . 356 . 244 . . 117 . 183 275 Average Temperature 67 | . 36 11 56 . . 9 98 1 11 . . 6 71 15 14 . 80 . 93 . . 47 . 62 73 Received Heat Transfer 1841 | . 162 9 261 . . . 174 190 126 . . 81 61 43 88 60 171 . 152 . 37 192 . 28 6 Effects 5 | . . . . . . . 3 . . . . . . . . . 1 . . . . . . . 1 Shutdowns 1 | . . . . . . . 1 . . . . . . . . . . . . . . . . . . Energy Bleed 3 | . . . . . . . 1 . . . . . . . . . 1 . . . . . . . 1 Short Circuit 1 | . . . . . . . 1 . . . . . . . . . . . . . . . . . . Siege Activations 5 | . . . . . . . . . . . . . . . . . . . . 1 . 3 . . 1 Total Turns 98 | . . . . . . . . . . . . . . . . . . . . 20 . 28 . . 50 Longest Duration 50 | . . . . . . . . . . . . . . . . . . . . 20 . 13 . . 50 Robots Corrupted 1 | . . . . . . . . . . . . . . . . . 1 . . . . . . . . Combat Hostiles 1 | . . . . . . . . . . . . . . . . . 1 . . . . . . . . Parts Fried 7 | . . . . . . . . 1 5 . . . . . . . . . 1 . . . . . . Impact Corruptions 10 | . . . . . . . . 1 6 . . . . 1 . . . . . 1 . 1 . . . Robots Melted . | . . . . . . . . . . . . . . . . . . . . . . . . . . Combat Hostiles . | . . . . . . . . . . . . . . . . . . . . . . . . . . Parts Melted 10 | . . . . . . . . . . . . . . . . . 1 . . . . 1 . 3 5 Heat Transferred 6452 | . . . 37 . . . . . . . . . 74 259 . . 481 37 1258 . 407 481 . 1443 1975 Parts Sabotaged . | . . . . . . . . . . . . . . . . . . . . . . . . . . Parts Stolen . | . . . . . . . . . . . . . . . . . . . . . . . . . . Parts Stripped . | . . . . . . . . . . . . . . . . . . . . . . . . . . Power Chain Reactions . | . . . . . . . . . . . . . . . . . . . . . . . . . . Alert | -11 -10 -10 -9 -9 -9 -8 -8 -8 -8 -8 -8 -8 -7 -6 -6 -6 -6 -5 -5 -4 -4 -3 -2 -1 -1 ------- Run | Yrd Mat Min Mat Min Exi Min Mat Gar Mat Gar Mat Gar Fac Fac Gar Fac Gar Fac Gar Fac Gar Res Res Acc Com Peak Influence 730 | 20 305 226 370 125 . 133 383 600 516 730 476 478 253 173 197 105 428 269 421 237 302 315 178 135 146 Initial 355 | . 13 118 87 125 . . 5 167 292 335 355 121 250 16 121 102 . 224 48 220 . 169 150 30 . Average 170 | 7 161 195 244 75 . 44 211 363 344 554 341 315 57 75 155 51 179 175 247 61 159 189 105 53 38 Maximum Alert Level 3 | . 1 1 1 . . . 1 2 2 3 2 2 1 . . . 2 1 2 1 1 1 . . . Low Security (%) 62 | 100 67 48 23 100 . 100 38 6 . . 1 13 87 100 100 100 60 34 32 90 78 57 100 100 100 Level 1 30 | . 32 51 76 . . . 61 52 85 37 66 51 12 . . . 32 65 62 9 21 42 . . . Level 2 6 | . . . . . . . . 41 14 19 31 34 . . . . 7 . 5 . . . . . . Level 3 . | . . . . . . . . . . 43 . . . . . . . . . . . . . . . Level 4 . | . . . . . . . . . . . . . . . . . . . . . . . . . . Level 5 . | . . . . . . . . . . . . . . . . . . . . . . . . . . High Security . | . . . . . . . . . . . . . . . . . . . . . . . . . . Max Security . | . . . . . . . . . . . . . . . . . . . . . . . . . . Squads Dispatched 46 | . 4 . 3 . . . 3 . 2 . 6 . 8 4 . 2 . 1 . 1 . 3 2 3 4 Investigation 6 | . 2 . 1 . . . . . . . 1 . . 1 . . . . . . . . . 1 . Extermination 15 | . . . . . . . . . . . . . 5 1 . 1 . 1 . 1 . 1 1 2 2 Reinforcement 19 | . 2 . 2 . . . 1 . 1 . 2 . 3 2 . 1 . . . . . 2 1 . 2 Assault . | . . . . . . . . . . . . . . . . . . . . . . . . . . Garrison 6 | . . . . . . . 2 . 1 . 3 . . . . . . . . . . . . . . Intercept . | . . . . . . . . . . . . . . . . . . . . . . . . . . Searches Triggered . | . . . . . . . . . . . . . . . . . . . . . . . . . . Construction Impeded 2 | . . . . . . . 1 . 1 . . . . . . . . . . . . . . . . Haulers Reinforced 4 | . . . . . . . . . . . . . 2 . . 1 . . . . . . 1 . . Active Scanning Responses . | . . . . . . . . . . . . . . . . . . . . . . . . . . Cargo Convoy Interrupts . | . . . . . . . . . . . . . . . . . . . . . . . . . . Stealth | -11 -10 -10 -9 -9 -9 -8 -8 -8 -8 -8 -8 -8 -7 -6 -6 -6 -6 -5 -5 -4 -4 -3 -2 -1 -1 --------- Run | Yrd Mat Min Mat Min Exi Min Mat Gar Mat Gar Mat Gar Fac Fac Gar Fac Gar Fac Gar Fac Gar Res Res Acc Com Distress Signals 15 | . 2 . 4 . . . 2 . . . 4 . . . . . . . . . . 2 1 . . Communications Jammed 188 | . . . . . . . . . . 20 32 1 15 8 . . . . 1 . 6 84 . . 21 Distress Signals 188 | . . . . . . . . . . 20 32 1 15 8 . . . . 1 . 6 84 . . 21 Times Spotted 334 | . 21 4 20 . . . 18 11 5 12 11 16 24 7 11 8 22 2 28 4 22 39 9 14 26 Peak Tracking Total 8 | . 3 2 3 . . 3 4 4 4 4 3 2 4 4 4 2 4 2 7 2 3 6 8 3 4 Tactical Retreats 13 | . 1 1 1 . . . . 1 . . . . 1 . 1 . 1 . . 1 2 . 1 1 1 Traps | -11 -10 -10 -9 -9 -9 -8 -8 -8 -8 -8 -8 -8 -7 -6 -6 -6 -6 -5 -5 -4 -4 -3 -2 -1 -1 ------- Run | Yrd Mat Min Mat Min Exi Min Mat Gar Mat Gar Mat Gar Fac Fac Gar Fac Gar Fac Gar Fac Gar Res Res Acc Com Traps Triggered 37 | . 1 . . . . . . . . . . 12 6 1 4 . 5 . 5 . . . 1 2 . Indirectly . | . . . . . . . . . . . . . . . . . . . . . . . . . . Trap Hack Attempts 2 | . . . . . . . . . . . . 2 . . . . . . . . . . . . . Triggered . | . . . . . . . . . . . . . . . . . . . . . . . . . . Disarmed . | . . . . . . . . . . . . . . . . . . . . . . . . . . Reprogrammed 2 | . . . . . . . . . . . . 2 . . . . . . . . . . . . . Reused . | . . . . . . . . . . . . . . . . . . . . . . . . . . Traps Extracted . | . . . . . . . . . . . . . . . . . . . . . . . . . . Installed . | . . . . . . . . . . . . . . . . . . . . . . . . . . Triggered . | . . . . . . . . . . . . . . . . . . . . . . . . . . Machines | -11 -10 -10 -9 -9 -9 -8 -8 -8 -8 -8 -8 -8 -7 -6 -6 -6 -6 -5 -5 -4 -4 -3 -2 -1 -1 ---------- Run | Yrd Mat Min Mat Min Exi Min Mat Gar Mat Gar Mat Gar Fac Fac Gar Fac Gar Fac Gar Fac Gar Res Res Acc Com Machines Disabled 31 | . 1 . . . . 1 3 5 . . . 1 1 4 . . 3 . 1 1 2 3 . 3 2 Max in Single Turn 4 | . 1 . . . . 1 1 1 . . . 1 1 4 . . 1 . 1 1 1 1 . 1 1 Garrison Access 3 | . . . . . . . . . . . . . . . . . . . . . . 1 1 1 . Garrison Relay 13 | . . . . . . . . 1 . . . 1 . . 2 . 2 . 3 . 4 . . . . Machines Repaired . | . . . . . . . . . . . . . . . . . . . . . . . . . . Machines Dismantled 16 | . . . . . . . . . . . . 1 . . 2 . 3 . 3 . 4 . . 3 . Machines Sabotaged . | . . . . . . . . . . . . . . . . . . . . . . . . . . Overloaded Fab Kills . | . . . . . . . . . . . . . . . . . . . . . . . . . . Hacking | -11 -10 -10 -9 -9 -9 -8 -8 -8 -8 -8 -8 -8 -7 -6 -6 -6 -6 -5 -5 -4 -4 -3 -2 -1 -1 --------- Run | Yrd Mat Min Mat Min Exi Min Mat Gar Mat Gar Mat Gar Fac Fac Gar Fac Gar Fac Gar Fac Gar Res Res Acc Com Machines Accessed 75 | . 4 . 8 . 2 . 5 . 2 3 7 4 8 3 . 7 1 3 1 4 2 2 2 5 2 Terminals 46 | . 2 . 4 . . . 4 . 1 3 5 4 5 2 . 4 1 1 1 1 2 1 1 3 1 Fabricators 4 | . . . . . . . . . . . . . 1 . . 1 . 1 . 1 . . . . . Repair Stations 3 | . . . 1 . . . . . . . 1 . . . . 1 . . . . . . . . . Recycling Units 8 | . 2 . 1 . . . . . . . . . 2 . . . . . . 1 . . . 1 1 Scanalyzers 2 | . . . 2 . . . . . . . . . . . . . . . . . . . . . . Garrison Access 10 | . . . . . . . 1 . 1 . 1 . . 1 . 1 . 1 . 1 . 1 1 1 . Total Hacks 155 | . 9 . 20 . 2 . 14 . 5 5 17 8 16 5 . 15 1 7 2 8 6 2 2 7 4 Successful 68 | . 2 . 10 . 2 . 8 . 3 3 7 1 7 2 . 7 1 2 1 4 3 1 1 2 1 Failed 87 | . 7 . 10 . . . 6 . 2 2 10 7 9 3 . 8 . 5 1 4 3 1 1 5 3 Catastrophic 29 | . 2 . 1 . . . 2 . . 1 2 3 4 2 . 3 . . . 1 2 1 1 4 . Database Lockouts . | . . . . . . . . . . . . . . . . . . . . . . . . . . Manual 78 | . 7 . 8 . 1 . 12 . 4 2 11 3 7 2 . 7 . 3 . 2 3 1 1 1 3 Terminals 102 | . 5 . 9 . . . 13 . 4 5 13 8 10 3 . 8 1 4 2 1 6 1 1 5 3 Fabricators 8 | . . . . . . . . . . . . . 2 . . 2 . 2 . 2 . . . . . Repair Stations 9 | . . . 2 . . . . . . . 3 . . . . 4 . . . . . . . . . Recycling Units 16 | . 4 . 3 . . . . . . . . . 4 . . . . . . 3 . . . 1 1 Scanalyzers 6 | . . . 6 . . . . . . . . . . . . . . . . . . . . . . Garrison Access 12 | . . . . . . . 1 . 1 . 1 . . 2 . 1 . 1 . 2 . 1 1 1 . Terminal Hacks 27 | . . . 2 . 2 . 5 . 2 3 3 1 2 . . 1 1 . 1 . 3 . . 1 . Record 1 | . . . . . 1 . . . . . . . . . . . . . . . . . . . . Part Schematic 3 | . . . . . . . 2 . 1 . . . . . . . . . . . . . . . . Robot Analysis 2 | . . . . . . . . . 1 . 1 . . . . . . . . . . . . . . Prototype ID Bank 2 | . . . 1 . . . . . . . 1 . . . . . . . . . . . . . . Open Door 1 | . . . . . . . . . . 1 . . . . . . . . . . . . . . . Branch Access Points 1 | . . . . . . . 1 . . . . . . . . . . . . . . . . . . Emergency Access Points 3 | . . . . . . . . . . 1 . 1 . . . . . . . . 1 . . . . Terminal Index 1 | . . . . . . . . . . . . . . . . 1 . . . . . . . . . Unreport Threat 1 | . . . . . . . . . . . 1 . . . . . . . . . . . . . . Recall Extermination 1 | . . . . . . . . . . . . . . . . . . . . . . . . 1 . Recall Reinforcements 1 | . . . 1 . . . . . . . . . . . . . . . . . . . . . . Hauler Manifests 1 | . . . . . . . 1 . . . . . . . . . . . . . . . . . . Zone Layout 3 | . . . . . . . 1 . . . . . 2 . . . . . . . . . . . . Garrison Registry 4 | . . . . . . . . . . 1 . . . . . . 1 . 1 . 1 . . . . Patrol Navigation 1 | . . . . . . . . . . . . . . . . . . . . . 1 . . . . Derelict Proto ID Bank 1 | . . . . . 1 . . . . . . . . . . . . . . . . . . . . Fabricator Hacks 1 | . . . . . . . . . . . . . . . . . . . . 1 . . . . . Network Status 1 | . . . . . . . . . . . . . . . . . . . . 1 . . . . . Repair Station Hacks 7 | . . . 2 . . . . . . . 2 . . . . 3 . . . . . . . . . Scan Component 4 | . . . 1 . . . . . . . 1 . . . . 2 . . . . . . . . . Repair 3 | . . . 1 . . . . . . . 1 . . . . 1 . . . . . . . . . Recycling Unit Hacks 2 | . . . . . . . . . . . . . 1 . . . . . . . . . . . 1 Retrieve Components 2 | . . . . . . . . . . . . . 1 . . . . . . . . . . . 1 Scanalyzer 3 | . . . 3 . . . . . . . . . . . . . . . . . . . . . . Insert Component 2 | . . . 2 . . . . . . . . . . . . . . . . . . . . . . Analyze 1 | . . . 1 . . . . . . . . . . . . . . . . . . . . . . Garrison Access Hacks 12 | . . . . . . . 1 . 1 . 1 . . 2 . 1 . 1 . 2 . 1 1 1 . Unlock Access 7 | . . . . . . . 1 . 1 . 1 . . 1 . 1 . 1 . 1 . . . . . Seal Access 3 | . . . . . . . . . . . . . . . . . . . . . . 1 1 1 . Coupler Status 2 | . . . . . . . . . . . . . . 1 . . . . . 1 . . . . . Unauthorized Hacks 16 | . 2 . 3 . . . 2 . . . 1 . 4 . . 2 . 1 . 1 . . . . . Terminals 10 | . . . 2 . . . 2 . . . 1 . 2 . . 2 . 1 . . . . . . . Track 1 | . . . 1 . . . . . . . . . . . . . . . . . . . . . . Assimilate 1 | . . . . . . . 1 . . . . . . . . . . . . . . . . . . Botnet 8 | . . . 1 . . . 1 . . . 1 . 2 . . 2 . 1 . . . . . . . Fabricators . | . . . . . . . . . . . . . . . . . . . . . . . . . . Repair Stations . | . . . . . . . . . . . . . . . . . . . . . . . . . . Recycling Units 6 | . 2 . 1 . . . . . . . . . 2 . . . . . . 1 . . . . . Recyclers 2 | . . . . . . . . . . . . . 1 . . . . . . 1 . . . . . Mask 1 | . . . . . . . . . . . . . 1 . . . . . . . . . . . . Tunnel 3 | . 2 . 1 . . . . . . . . . . . . . . . . . . . . . . Scanalyzers . | . . . . . . . . . . . . . . . . . . . . . . . . . . Garrison Access . | . . . . . . . . . . . . . . . . . . . . . . . . . . Data Cores Recovered 1 | . . . . . . . 1 . . . . . . . . . . . . . . . . . . Used 1 | . . . . . . . 1 . . . . . . . . . . . . . . . . . . Hacking Detections 60 | . 4 . 8 . . . 4 . 1 2 6 4 7 3 . 6 . 2 1 3 2 1 1 4 1 Full Trace Events 3 | . . . . . . . . . . . . 1 . 1 . . . . . . . . . 1 . Feedback Events . | . . . . . . . . . . . . . . . . . . . . . . . . . . Feedback Blocked . | . . . . . . . . . . . . . . . . . . . . . . . . . . Robot Schematics Acquired . | . . . . . . . . . . . . . . . . . . . . . . . . . . Robots Built . | . . . . . . . . . . . . . . . . . . . . . . . . . . Authchips . | . . . . . . . . . . . . . . . . . . . . . . . . . . Time . | . . . . . . . . . . . . . . . . . . . . . . . . . . Total Robot Build Rating . | . . . . . . . . . . . . . . . . . . . . . . . . . . Part Schematics Acquired 4 | . . . 1 . . . 2 . 1 . . . . . . . . . . . . . . . . Parts Built . | . . . . . . . . . . . . . . . . . . . . . . . . . . Authchips . | . . . . . . . . . . . . . . . . . . . . . . . . . . Time . | . . . . . . . . . . . . . . . . . . . . . . . . . . Total Part Build Rating . | . . . . . . . . . . . . . . . . . . . . . . . . . . Parts Repaired 3 | . . . 1 . . . . . . . 1 . . . . 1 . . . . . . . . . Time 85 | . . . 25 . . . . . . . 16 . . . . 44 . . . . . . . . . Parts Recycled . | . . . . . . . . . . . . . . . . . . . . . . . . . . Recycled Matter . | . . . . . . . . . . . . . . . . . . . . . . . . . . Retrieved Matter . | . . . . . . . . . . . . . . . . . . . . . . . . . . Retrieved Components 12 | . . . . . . . . . . . . . 2 . . . . . . . . . . . 10 Parts Scanalyzed 2 | . . . 2 . . . . . . . . . . . . . . . . . . . . . . Part Schematics Acquired 1 | . . . 1 . . . . . . . . . . . . . . . . . . . . . . Parts Damaged . | . . . . . . . . . . . . . . . . . . . . . . . . . . Bothacking | -11 -10 -10 -9 -9 -9 -8 -8 -8 -8 -8 -8 -8 -7 -6 -6 -6 -6 -5 -5 -4 -4 -3 -2 -1 -1 ------------ Run | Yrd Mat Min Mat Min Exi Min Mat Gar Mat Gar Mat Gar Fac Fac Gar Fac Gar Fac Gar Fac Gar Res Res Acc Com Used RIF Installer 9 | . . . . . . . . 2 . 1 . 2 . . 1 . 1 . 1 . 1 . . . . Hotswap 1 | . . . . . . . . . . . . . . . 1 . . . . . . . . . . Code Merge 1 | . . . . . . . . . . . . . . . . . . . . . 1 . . . . Command Fork 1 | . . . . . . . . 1 . . . . . . . . . . . . . . . . . Threat Obfuscator 2 | . . . . . . . . . . . . 2 . . . . . . . . . . . . . Signal Jammer 1 | . . . . . . . . . . 1 . . . . . . . . . . . . . . . Patrol Navigation 1 | . . . . . . . . . . . . . . . . . 1 . . . . . . . . Autoassimilate 1 | . . . . . . . . . . . . . . . . . . . 1 . . . . . . Robots Hacked 79 | . . . . . . . . 1 . . . . 5 . 3 3 2 1 10 1 14 18 7 7 7 Non-combat 19 | . . . . . . . . . . . . . 2 . . . . 1 . 1 1 6 2 4 2 Combat 60 | . . . . . . . . 1 . . . . 3 . 3 3 2 . 10 . 13 12 5 3 5 Autoassimilated 8 | . . . . . . . . . . . . . . . . . . . . . 2 5 1 . . Robot Hacks Applied 75 | . . . . . . . . 1 . . . . 5 . 3 3 2 1 10 3 12 14 6 7 8 parse_system 1 | . . . . . . . . . . . . . 1 . . . . . . . . . . . . map_earth 2 | . . . . . . . . . . . . . . . . . . 1 . . . 1 . . . find_dsf 1 | . . . . . . . . . . . . . . . . . . . . . . 1 . . . drop_inventory 6 | . . . . . . . . . . . . . . . . . . . . . . 3 1 2 . purge_threat 1 | . . . . . . . . . . . . . . . . . . . . 1 . . . . . map_route 7 | . . . . . . . . . . . . . 1 . . . . . . . . 2 1 1 2 spike_heat 3 | . . . . . . . . . . . . . . . . . . . . . 1 . . 1 1 amplify_resonance 11 | . . . . . . . . . . . . . . . . 1 . . 5 . 2 1 2 . . wipe_record 3 | . . . . . . . . . . . . . . . . . . . 1 . . . 1 . 1 disable_weapons 2 | . . . . . . . . . . . . . . . . . . . . . 1 . . . 1 overwrite_iff 15 | . . . . . . . . 1 . . . . 1 . 2 . 2 . 4 . 1 2 . . 2 streamctrl_high 1 | . . . . . . . . . . . . . . . 1 . . . . . . . . . . formatsys_low 4 | . . . . . . . . . . . . . 1 . . . . . . 2 1 . . . . formatsys_high 18 | . . . . . . . . . . . . . 1 . . 2 . . . . 6 4 1 3 1 Relay Couplers Released 60 | . . . . . . . . 5 . . . 4 . . 7 . 8 . 12 . 17 1 2 4 . Machine Destruction 60 | . . . . . . . . 5 . . . 4 . . 7 . 8 . 12 . 17 1 2 4 . Attached 26 | . . . . . . . . 1 . . . . 2 . 2 1 3 . 5 . 6 1 1 3 1 Merged Code Value 20 | . . . . . . . . . . . . . . . . . . . . . 9 6 5 . . Fabnet Peak Effective % . | . . . . . . . . . . . . . . . . . . . . . . . . . . Robots Rewired 18 | . . . . . . . . 3 . 3 . . . . 6 . . . . . 6 . . . . Allies Hacked 2 | . . . . . . . . . . . . . . . . . . . . . . . . 1 1 Hacks Repelled . | . . . . . . . . . . . . . . . . . . . . . . . . . . Allies | -11 -10 -10 -9 -9 -9 -8 -8 -8 -8 -8 -8 -8 -7 -6 -6 -6 -6 -5 -5 -4 -4 -3 -2 -1 -1 -------- Run | Yrd Mat Min Mat Min Exi Min Mat Gar Mat Gar Mat Gar Fac Fac Gar Fac Gar Fac Gar Fac Gar Res Res Acc Com Total Allies 77 | . . . . . . . 1 4 . 4 . . 3 . 10 3 4 . 5 1 19 11 5 3 4 Largest Group 9 | . . . . . . . 1 4 4 5 6 2 1 . 6 2 2 . 3 1 9 6 4 3 3 Highest-Rated Group 408 | . . . . . . . 10 73 73 80 85 60 26 . 138 76 75 . 139 26 408 298 194 158 223 Highest-Rated Ally 95 | . . . . . . . 10 21 21 39 39 39 26 . 41 47 46 . 49 26 95 64 64 64 89 Total Orders 50 | . . . . . . . 4 12 4 8 4 2 . . . . . . . 4 12 . . . . STAY 24 | . . . . . . . 2 6 1 4 2 1 . . . . . . . 2 6 . . . . FOLLOW 26 | . . . . . . . 2 6 3 4 2 1 . . . . . . . 2 6 . . . . Ally Attacks 425 | . . . . . . . . 5 22 17 46 22 11 . 21 16 14 . 12 . 61 98 10 25 45 Total Damage 10803 | . . . . . . . . 36 430 273 552 254 176 . 706 325 400 . 234 . 1551 3620 228 965 1053 Kills 68 | . . . . . . . . 2 3 4 9 6 1 . 3 3 1 . 2 . 10 16 . 2 6 Allies Corrupted 5 | . . . . . . . . . . . . . . . . . . . . . 1 . . 2 2 Allies Melted 1 | . . . . . . . . . . . . . . . . . . . . . . 1 . . . Intel | -11 -10 -10 -9 -9 -9 -8 -8 -8 -8 -8 -8 -8 -7 -6 -6 -6 -6 -5 -5 -4 -4 -3 -2 -1 -1 ------- Run | Yrd Mat Min Mat Min Exi Min Mat Gar Mat Gar Mat Gar Fac Fac Gar Fac Gar Fac Gar Fac Gar Res Res Acc Com Robot Analysis Total 2 | . . . . . . . . . 1 . 1 . . . . . . . . . . . . . . Derelict Logs Recovered 2 | . . . . 2 . . . . . . . . . . . . . . . . . . . . . Drone Launches . | . . . . . . . . . . . . . . . . . . . . . . . . . . Drone Recoveries . | . . . . . . . . . . . . . . . . . . . . . . . . . . Exploration | -11 -10 -10 -9 -9 -9 -8 -8 -8 -8 -8 -8 -8 -7 -6 -6 -6 -6 -5 -5 -4 -4 -3 -2 -1 -1 ------------- Run | Yrd Mat Min Mat Min Exi Min Mat Gar Mat Gar Mat Gar Fac Fac Gar Fac Gar Fac Gar Fac Gar Res Res Acc Com Turns Passed 27386 | 226 1153 322 1031 678 342 739 1503 1194 252 615 813 1380 3156 781 872 824 1937 614 1906 806 2025 1180 681 1211 1145 Spaces Moved 14585 | 103 615 108 649 626 321 648 864 660 168 362 576 785 1887 393 369 496 639 301 631 362 931 569 388 587 547 Core 4 | 4 . . . . . . . . . . . . . . . . . . . . . . . . . Treads 3533 | 99 419 . . . . . . . . . . 1 . . . . 502 . 376 362 931 360 . 1 482 Legs . | . . . . . . . . . . . . . . . . . . . . . . . . . . Wheels 11048 | . 196 108 649 626 321 648 864 660 168 362 576 784 1887 393 369 496 137 301 255 . . 209 388 586 65 Hover . | . . . . . . . . . . . . . . . . . . . . . . . . . . Flight . | . . . . . . . . . . . . . . . . . . . . . . . . . . Fastest Speed 50 | 50 120 120 105 105 105 105 105 120 120 120 120 131 125 140 140 140 140 175 160 160 160 130 130 130 130 Average Speed 145 | 155 149 120 105 105 105 105 130 131 120 128 128 146 142 140 140 140 223 182 230 197 163 150 130 134 157 Slowest Speed 320 | 160 240 120 105 105 105 105 150 135 120 135 131 240 225 140 140 140 255 270 320 250 250 250 130 245 170 Overloaded Moves . | . . . . . . . . . . . . . . . . . . . . . . . . . . Propulsion Burnouts . | . . . . . . . . . . . . . . . . . . . . . . . . . . Robots Hopped . | . . . . . . . . . . . . . . . . . . . . . . . . . . Cave-ins Triggered . | . . . . . . . . . . . . . . . . . . . . . . . . . . Exploration Rate (%) 44 | 5 92 22 43 97 70 99 62 43 13 47 66 75 40 15 50 14 76 9 48 11 77 25 15 14 24 Regions Visited 25 Branch Regions 5 Pre-discovered Areas 4 | . 2 . 1 . 1 . . . . . . . . . . . . . . . . . . . . Known Exits Taken 9 | . . . . . . . 1 . 1 . 1 . . 1 . 1 . 1 . 1 . 1 1 . . Unknown Exits Taken 9 | 1 1 1 1 1 1 1 . . . . . . 1 . . . . . . . . . . 1 . Scrap Searched 3 | . . . . 2 . 1 . . . . . . . . . . . . . . . . . . . Spaces Dug 143 | . 1 1 . . . . 19 6 1 5 1 3 11 11 2 5 21 . 8 4 11 9 6 16 2 Terrain Destroyed 413 | . 11 14 1 . . 47 39 6 1 10 1 3 14 50 5 5 44 6 26 5 37 38 12 16 22 Melee 90 | . . . . . . . 3 6 1 4 1 3 7 9 2 5 8 . 2 4 11 3 6 15 . Projectile 139 | . 1 1 1 . . . . . . 1 . . 7 5 3 . 11 6 24 1 26 35 6 1 10 AOE 184 | . 10 13 . . . 47 36 . . 5 . . . 36 . . 25 . . . . . . . 12 Terrain Rammed . | . . . . . . . . . . . . . . . . . . . . . . . . . . Walls Destroyed . | . . . . . . . . . . . . . . . . . . . . . . . . . . Machines Disabled . | . . . . . . . . . . . . . . . . . . . . . . . . . . Actions | -11 -10 -10 -9 -9 -9 -8 -8 -8 -8 -8 -8 -8 -7 -6 -6 -6 -6 -5 -5 -4 -4 -3 -2 -1 -1 --------- Run | Yrd Mat Min Mat Min Exi Min Mat Gar Mat Gar Mat Gar Fac Fac Gar Fac Gar Fac Gar Fac Gar Res Res Acc Com Total 18718 | 135 733 287 875 639 329 674 1125 837 204 475 633 974 2231 567 610 598 969 353 957 424 1255 761 510 832 731 Wait 1477 | . 5 161 111 3 . . 116 78 12 10 27 37 162 78 68 62 139 18 106 29 73 41 49 57 35 Move 14564 | 102 614 107 648 625 320 647 863 658 168 361 576 784 1886 393 368 496 638 301 630 361 930 568 387 586 547 Hop . | . . . . . . . . . . . . . . . . . . . . . . . . . . Pick Up 214 | 9 21 3 17 1 3 1 20 5 2 9 4 8 15 8 8 2 16 4 16 4 14 5 7 7 5 Fast Attach 79 | 7 . . 4 . . . 2 . 1 1 2 2 7 9 . 1 6 5 4 . 4 3 3 12 6 Attach 56 | . . . 3 . . . 2 1 . . . 1 4 2 2 . 5 2 4 2 4 4 . 4 16 Detach 27 | . . . . . . . 2 . . 1 . . 2 1 1 . 4 1 4 . 2 2 2 3 2 Swap 340 | 1 17 5 10 3 2 3 30 10 2 7 1 11 20 19 15 12 27 4 35 7 30 20 12 23 14 Drop 267 | 1 14 3 21 1 4 1 24 6 6 12 6 12 21 15 6 4 19 8 27 3 15 9 7 10 12 Fire 1094 | 15 60 8 61 6 . 22 63 50 7 22 16 30 95 31 78 14 76 10 91 10 81 87 21 50 90 Melee 197 | . . . . . . . 3 25 6 9 1 5 10 11 4 6 23 . 11 8 29 9 12 21 4 Ram 2 | . 1 . . . . . . . . . . . 1 . . . . . . . . . . . . Kick . | . . . . . . . . . . . . . . . . . . . . . . . . . . Crush 4 | . 1 . . . . . . . . . . . . . . . . . . . . 3 . . . Escape Stasis 141 | . . . . . . . . . . . . 79 8 . 32 . 2 . 20 . . . . . . Rewire 130 | . . . . . . . . 4 . 43 . . . . 22 . . . . . 61 . . . . Trap 2 | . . . . . . . . . . . . 2 . . . . . . . . . . . . . Miscellaneous 124 | . . . . . . . . . . . . 3 . . 6 1 14 . 9 . 12 10 10 59 . Route ------- -11/Scrapyard -10/Materials (discovered 3 exits: *Mat x2 / [*Min]) -10/Mines -9/Materials (discovered 2 exits: *Mat / [*Min]) -9/Mines (discovered 3 exits: *Mat x2 / *Exi) -9/Exiles -8/Mines (discovered 2 exits: *Mat x2) -8/Materials (discovered 4 exits: *Fac / *Sto x2 / Gar) -8/Garrison -8/Materials -8/Garrison (discovered 4 exits: *Fac x3 / *Mat) -8/Materials (discovered 2 exits: *Fac / Gar) -8/Garrison (discovered 3 exits: *Fac x3) -7/Factory (discovered 3 exits: *Fac x2 / [*Low]) -6/Factory -6/Garrison -6/Factory (discovered 3 exits: *Fac / [*Low] / Gar) -6/Garrison (discovered 3 exits: *Fac x3) -5/Factory -5/Garrison (discovered 3 exits: *Fac x3) -4/Factory (discovered 2 exits: *Res / Gar) -4/Garrison (discovered 3 exits: *Res x3) -3/Research -2/Research -1/Access -1/Command History --------- Turn | Location | Event 3 | -11/Scrapyard | Discovered new exit (range 15) 227 | -11/Scrapyard | Entered Materials 317 | -10/Materials | Build established: Mutant 509 | -10/Materials | Discovered new exit (range 12) 985 | -10/Materials | Discovered new exit (range 10) 1324 | -10/Materials | Discovered new exit (range 5) 1380 | -10/Materials | Entered Mines 1394 | -10/Mines | Met a Derelict bent on vengeance 1451 | -10/Mines | Discovered new exit (range 5) 1491 | -10/Mines | Assembled infested the area 1702 | -10/Mines | Entered Materials 1702 | -9/Materials | Evolved 2 slots: Propulsion x1, Weapon x1 2004 | -9/Materials | Build established: Tank 2413 | -9/Materials | Discovered new exit (range 7) 2512 | -9/Materials | Repaired Imp. Assault Rifle 2637 | -9/Materials | Discovered new exit (range 3) 2733 | -9/Materials | Entered Mines 2743 | -9/Mines | Discovered new exit (range 3) 2796 | -9/Mines | Deemed a non-threat by the Exiles lab entrance 2962 | -9/Mines | A weapon hastily lodged in a ceiling crevice suddenly fell to the ground 3009 | -9/Mines | Found a damaged Exp. Sensor Array with a note attached 3012 | -9/Mines | Found Prototype Device 3013 | -9/Mines | Identified Exp. Sensor Array 3053 | -9/Mines | Learned Materials emergency access door positions 3054 | -9/Mines | Learned Materials terminal intel 3184 | -9/Mines | Discovered new exit (range 6) 3407 | -9/Mines | Discovered new exit (range 5) 3411 | -9/Mines | Entered Exiles 3437 | -9/Exiles | Met 8R-AWN 3455 | -9/Exiles | Met EX-HEX 3517 | -9/Exiles | Met EX-DEC 3535 | -9/Exiles | Learned location of Zion (-6) 3604 | -9/Exiles | Met EX-BIN 3619 | -9/Exiles | Aligned with FarCom system 3620 | -9/Exiles | Given EX-Vault access code 3645 | -9/Exiles | Opened EX-Vault 3651 | -9/Exiles | Found Cloak of Protection 3673 | -9/Exiles | Warned to stay clear of 0b10 Research branches 3689 | -9/Exiles | Exiles lab attacked by MAIN.C 3743 | -9/Exiles | Discovered new exit (range 10) 3753 | -9/Exiles | Left Exiles lab with Cloak of Protection 3753 | -9/Exiles | Entered Mines 3875 | -8/Mines | Discovered new exit (range 9) 3892 | -8/Mines | Discovered new exit (range 5) 4065 | -8/Mines | Build established: Skirmisher 4492 | -8/Mines | Entered Materials 4492 | -8/Materials | Evolved 2 slots: Utility x2 4494 | -8/Materials | Loaded intel: 12 terminal locations 4642 | -8/Materials | Discovered new exit (range 9) 4723 | -8/Materials | Identified exit to Storage 4937 | -8/Materials | Build established: Tank 5008 | -8/Materials | Garrison activated, responded to threat 5222 | -8/Materials | Discovered new exit (range 12) 5654 | -8/Materials | Garrison activated, responded to threat 5946 | -8/Materials | Identified exit to Garrison 5995 | -8/Materials | Entered Garrison 5995 | -8/Garrison | Accompanied by 1 ally 6242 | -8/Garrison | Triggered checkpoint 6534 | -8/Garrison | Triggered checkpoint 6788 | -8/Garrison | Installed Relay Interface Framework 6843 | -8/Garrison | Garrison Relay disabled 6944 | -8/Garrison | Discovered new exit (range 10) 7046 | -8/Garrison | Build established: Mutant 7076 | -8/Garrison | Expanded RIF knowledge: Command Fork 7189 | -8/Garrison | Entered Materials 7189 | -8/Materials | Accompanied by 4 allies 7402 | -8/Materials | Garrison activated, responded to threat 7441 | -8/Materials | Identified exit to Garrison 7441 | -8/Materials | Entered Garrison 7441 | -8/Garrison | Accompanied by 3 allies 7632 | -8/Garrison | Discovered new exit (range 33) 7632 | -8/Garrison | Discovered new exit (range 51) 7632 | -8/Garrison | Discovered new exit (range 38) 7632 | -8/Garrison | Discovered new exit (range 48) 7659 | -8/Garrison | Triggered checkpoint 7689 | -8/Garrison | Triggered checkpoint 7717 | -8/Garrison | Triggered checkpoint 7762 | -8/Garrison | Destroyed 9 combat bots 7798 | -8/Garrison | Rescued a captive Derelict 7829 | -8/Garrison | Expanded RIF knowledge: Signal Jamming 8056 | -8/Garrison | Entered Materials 8056 | -8/Materials | Accompanied by 6 allies 8299 | -8/Materials | Garrison activated, responded to threat 8543 | -8/Materials | Repaired Arm. Wheel 8560 | -8/Materials | Met 7R-MNS 8683 | -8/Materials | Discovered new exit (range 15) 8869 | -8/Materials | Identified exit to Garrison 8869 | -8/Materials | Entered Garrison 8869 | -8/Garrison | Accompanied by 2 allies 8913 | -8/Garrison | Expanded RIF knowledge: Threat Obfuscation 9051 | -8/Garrison | Triggered checkpoint 9051 | -8/Garrison | Triggered checkpoint 9144 | -8/Garrison | Discovered new exit (range 12) 9205 | -8/Garrison | Triggered checkpoint 9335 | -8/Garrison | Triggered checkpoint 9471 | -8/Garrison | Discovered new exit (range 13) 9649 | -8/Garrison | Discovered new exit (range 12) 9713 | -8/Garrison | Triggered checkpoint 9785 | -8/Garrison | Expanded RIF knowledge: Threat Obfuscation 9830 | -8/Garrison | Garrison Relay disabled 9957 | -8/Garrison | Triggered checkpoint 10249 | -8/Garrison | Entered Factory 10249 | -7/Factory | Evolved 2 slots: Utility x2 10554 | -7/Factory | Build established: Bothacker-Tank 11584 | -7/Factory | Found Rocket Array 11588 | -7/Factory | Found Rocket Array 11803 | -7/Factory | Discovered new exit (range 40) 11891 | -7/Factory | Build established: Tank 12043 | -7/Factory | Discovered new exit (range 9) 12135 | -7/Factory | P-60 Hacker assimilated allied Administrator 4a 12655 | -7/Factory | Discovered new exit (range 5) 12862 | -7/Factory | Build established: Skirmisher 13405 | -7/Factory | Entered another Factory area 13405 | -6/Factory | Evolved 2 slots: Power x1, Utility x1 14186 | -6/Factory | Identified exit to Garrison 14186 | -6/Factory | Entered Garrison 14224 | -6/Garrison | Triggered checkpoint 14262 | -6/Garrison | Triggered checkpoint 14313 | -6/Garrison | Build established: Tank 14326 | -6/Garrison | Garrison Relay disabled 14452 | -6/Garrison | Triggered checkpoint 14551 | -6/Garrison | Expanded RIF knowledge: Hotswap 14864 | -6/Garrison | Spotted B-75 Beast 14874 | -6/Garrison | Triggered checkpoint 14874 | -6/Garrison | Triggered checkpoint 14912 | -6/Garrison | Lost 5 allies 14973 | -6/Garrison | Discovered new exit (range 14) 15003 | -6/Garrison | Garrison Relay disabled 15058 | -6/Garrison | Entered Factory 15058 | -6/Factory | Accompanied by 1 ally 15520 | -6/Factory | Discovered new exit (range 16) 15525 | -6/Factory | Discovered new exit (range 9) 15861 | -6/Factory | Repaired Hrd. Heavy Armor Plating 15882 | -6/Factory | Identified exit to Garrison 15882 | -6/Factory | Entered Garrison 15882 | -6/Garrison | Accompanied by 1 ally 15929 | -6/Garrison | Heavy support dispatched to Factory 15931 | -6/Garrison | Heavy support dispatched to Factory 16269 | -6/Garrison | Build established: Skirmisher 16344 | -6/Garrison | Discovered new exit (range 47) 16344 | -6/Garrison | Discovered new exit (range 65) 16344 | -6/Garrison | Discovered new exit (range 49) 16500 | -6/Garrison | Rescued a captive Derelict 16510 | -6/Garrison | Rescued a captive Derelict 16620 | -6/Garrison | Triggered checkpoint 17018 | -6/Garrison | Expanded RIF knowledge: Patrol Navigation 17068 | -6/Garrison | H-XX Assembler disabled 17244 | -6/Garrison | Build established: Mutant 17353 | -6/Garrison | Garrison Relay disabled 17424 | -6/Garrison | Triggered checkpoint 17620 | -6/Garrison | Spotted B-75 Beast 17714 | -6/Garrison | Garrison Relay disabled 17819 | -6/Garrison | Entered Factory 17819 | -5/Factory | Evolved 2 slots: Propulsion x1, Utility x1 18006 | -5/Factory | Build established: Botlord-Skirmisher 18433 | -5/Factory | Identified exit to Garrison 18433 | -5/Factory | Entered Garrison 18559 | -5/Garrison | Build established: Botlord-Tank 18625 | -5/Garrison | Triggered checkpoint 18668 | -5/Garrison | Garrison Relay disabled 18912 | -5/Garrison | Triggered checkpoint 18955 | -5/Garrison | Triggered checkpoint 19082 | -5/Garrison | Discovered new exit (range 8) 19135 | -5/Garrison | Triggered checkpoint 19208 | -5/Garrison | Discovered new exit (range 36) 19208 | -5/Garrison | Discovered new exit (range 69) 19208 | -5/Garrison | Discovered new exit (range 21) 19395 | -5/Garrison | Expanded RIF knowledge: Autoassimilate 19405 | -5/Garrison | Triggered checkpoint 19491 | -5/Garrison | Garrison Relay disabled 19826 | -5/Garrison | Garrison Relay disabled 20249 | -5/Garrison | Spotted B-75 Beast 20339 | -5/Garrison | Entered Factory 20339 | -4/Factory | Evolved 2 slots: Utility x2 20600 | -4/Factory | Found Quantum Capacitor 20938 | -4/Factory | Build established: Botlord-Mutant 21023 | -4/Factory | Discovered new exit (range 16) 21028 | -4/Factory | P-70 Sage assimilated allied Administrator 7a 21137 | -4/Factory | Identified exit to Garrison 21145 | -4/Factory | Entered Garrison 21145 | -4/Garrison | Accompanied by 1 ally 21161 | -4/Garrison | Spotted B-86 Titan 21407 | -4/Garrison | Triggered checkpoint 21438 | -4/Garrison | Garrison Relay disabled 21592 | -4/Garrison | Found embedded Infiltrators 21768 | -4/Garrison | Spotted B-86 Titan 21771 | -4/Garrison | Triggered checkpoint 21789 | -4/Garrison | Destroyed B-86 Titan 21878 | -4/Garrison | Discovered new exit (range 10) 22087 | -4/Garrison | Triggered checkpoint 22102 | -4/Garrison | Garrison Relay disabled 22185 | -4/Garrison | Triggered checkpoint 22189 | -4/Garrison | Triggered checkpoint 22346 | -4/Garrison | Discovered new exit (range 9) 22377 | -4/Garrison | Triggered checkpoint 22437 | -4/Garrison | Lost 5 allies 22448 | -4/Garrison | Garrison Relay disabled 22592 | -4/Garrison | Discovered new exit (range 64) 22592 | -4/Garrison | Discovered new exit (range 40) 22592 | -4/Garrison | Discovered new exit (range 27) 22597 | -4/Garrison | Triggered checkpoint 22719 | -4/Garrison | Garrison Relay disabled 22795 | -4/Garrison | H-XX Assembler disabled 22807 | -4/Garrison | Expanded RIF knowledge: Code Merge 22917 | -4/Garrison | Build established: Botlord-Tank 23085 | -4/Garrison | Found Adv. Powered Armor 23089 | -4/Garrison | Found Adv. Powered Armor 23170 | -4/Garrison | Entered Research 23170 | -3/Research | Accompanied by 5 allies 23170 | -3/Research | Evolved 2 slots: Propulsion x1, Utility x1 23583 | -3/Research | Lost 3 allies 23738 | -3/Research | Found Spectral Analyzer 24014 | -3/Research | P-80 Master assimilated allied Warden 8a 24236 | -3/Research | Discovered new exit (range 18) 24317 | -3/Research | Identified exit to Research 24350 | -3/Research | Entered another Research area 24350 | -2/Research | Accompanied by 1 ally 24350 | -2/Research | Evolved 2 slots: Propulsion x1, Utility x1 24366 | -2/Research | Lost 7 allies 24548 | -2/Research | Allied Derelicts emerged from ambush trap array 24763 | -2/Research | Found Prototype Hackware 24845 | -2/Research | Lost 3 allies 24897 | -2/Research | Build established: Botlord-Mutant 25001 | -2/Research | Discovered new exit (range 15) 25018 | -2/Research | Identified exit to Access 25031 | -2/Research | Entered Access 25031 | -1/Access | Accompanied by 2 allies 25031 | -1/Access | Evolved 2 slots: Utility x2 25303 | -1/Access | P-80 Master assimilated allied Warden 10a 25503 | -1/Access | Identified Exp. System Shield 25522 | -1/Access | System corruption reached 10% 26229 | -1/Access | Discovered new exit (range 8) 26242 | -1/Access | Entered Command 26242 | -1/Command | Accompanied by 1 ally 26398 | -1/Command | Build established: Botlord-Tank 26896 | -1/Command | Lost 3 allies 27298 | -1/Command | Spotted Combat Programmer 27299 | -1/Command | Spotted Combat Programmer 27315 | -1/Command | Spotted M Guard 27316 | -1/Command | Spotted M Guard 27334 | -1/Command | Destroyed Combat Programmer 27343 | -1/Command | System corruption reached 30% 27369 | -1/Command | Core integrity fell below 50% 27382 | -1/Command | Core integrity fell below 20% 27387 | -1/Command | Destroyed by M Guard with Advanced Micro-nuke Launcher Last Messages --------------- 27378_ The unstable cave ceiling collapses. 27378_ Combat Programmer Prototype Reactor blasted off. 27378_ Combat Programmer knocked back. 27379_ The unstable cave ceiling collapses. 27379_ Hvy. Gauss Cannon destroyed. 27379_ Knocked back. 27380_ The unstable cave ceiling collapses. 27381_ Force Lance destroyed. 27382_ The unstable cave ceiling collapses. 27382_ Knocked back. 27383_ The unstable cave ceiling collapses. 27384_ Knocked back. 27385_ The unstable cave ceiling collapses. 27385_ System corrupted: Linear Accelerator jammed. 27386_ Linear Accelerator destroyed. 27387_ The unstable cave ceiling collapses. 27387_ Penetrated by EMDS Slug. 27387_ Graphene Brace destroyed. Map ----- +----------------------------------------------------+ | ?????????????????????????????????????????????????? | | ?????????????????????????????????????????????????? | | ?????????????????????????????????????????????????? | | ?????????????????????????????????????????????????? | | ?????????????????????????????????????????????????? | | ?????????????????????????????????????????????????? | | ???????????????????????##????????????????????????? | | ??????????????????###### ##??????????????????#???? | | ??????????????????# # #####????????????? #???? | | ???????????????????# # # #####????????? #???? | | ???????????????????# ## #????????? #???? | | ??????????????????## # # # #???????## ###?? | | ??????????????????# ## ## #??????? #?? | | ???????????????????# ### #??????# #?? | | ??????????????????##### ## # ## ##??????# #?? | | ????????????? ???# #??????# #?? | | ???????????## W### W # W ######## #?? | | ???????? % + #?? | | ???????? Y + #?? | | ???????? = * + #?? | | ????????? !%* Yp + #?? | | ????????? = + ### | | ??????????#"" ### W W W ######## | | ???????????## ???# #??????# | | ????????????##????## ##??????# | | ??????????????????# @ # #??????# | | ??????????????????## % ##??????# | | ???????????????????# ##???????# % ### | | ???????????????????# ##????????# # | | ???????????????????# ####?????????# # | | ???????????????????# ###????????????# # | | ???????????????????### ?????########## # | | ?????????????????????### ##?????# ## # | | ???????????????????????##???????# ! ## ### | | ????????????????????????????????# """= ## #?? | | ????????????????????????????????# "Y===## #?? | | ????????????????????????????????# """!=## #?? | | ????????????????????????????????# *=#### #?? | | ????????????????????????????????# #??# ### | | ????????????????????????????????####+####### | | ??????????????????????????????????# | | ??????????????????????????????????# | | ??????????????????????????????????# | | ??????????????????????????????????# | | ??????????????????????????????????# "" " | | ??????????????????????????????????# """ """ | | ??????????????????????????????????# """" """" | | ??????????????????????????????????# "" "" | | ??????????????????????????????????# | | ??????????????????????????????????# | +----------------------------------------------------+ Best States ------------- Heat Dissipation 102 Energy Generation 45 Energy Capacity 600 Matter Stores 300 Matter Capacity 300 Sight Range 16 Terrain Scan Density 10 Jamming Range 14 Additional Mass Support 12 Armor Coverage 1250 Resistance: EM 15 Point Defense Rating 240 Evasion (%) 40 Core Analysis 6 Recoil Reduction 6 Kinecelleration 40 Relay Coupler Types 6 Relay Coupler Value 174 Item Schematics ----------------- Arm. Wheel | -9/Materials | Scanalyzed Plasma Cutter | -8/Materials | Hacked Assault Cannon | -8/Materials | Hacked Hrd. Light Armor Plating | -8/Materials | Hacked Robot Schematics ------------------ None Fabricated ------------ Nothing Alien Tech Used ----------------- None Achievements -------------- Error 47 Pwned Challenges ------------ None Game ------ Seed CoolantShadeSteel Manual? 0 Play Time 05:13:10 Cumulative 181.3 hours Start 2024.05.25 @ 22:54:44 End 2024.05.31 @ 22:54:54 Sessions 7 Manual Loads 0 Difficulty Rogue Special Mode None Game No. 93 Rogue 93 Adventurer 0 Explorer 0 Win Type - Total 6 Types 3/0/2/1/0/0/0/0/0 Lore% 62 Gallery% 82 Achievement% 60 Wizard Run 0 Options --------- Layout 2 ASCII 0 Keyboard 1 Movement Numpad Keybinds 0 Fullscreen 2 Font 32/Tamsyn Map View 50x44 Zoom Use 0% Tactical HUD 1 Map Filters NONE Filters NONE Steam 1 RUN: 103f173b-7394-4ff5-b339-aebccb527a1c